bitfinex/quotes_ETHUSD_20250324
["timestamp","ask_amount","ask_price","bid_price","bid_amount"]
[1742792482060,4.88832,2045.7,2045.5,1.13449019]
[1742792482247,4.88832,2045.7,2045.5,1.0856081]
[1742792482446,0.8339,2046.0,2045.3,0.7971]
[1742792482447,4.88878,2045.5,2045.3,0.7971]
[1742792482642,4.88949,2045.2,2045.0,0.7971]
[1742792482879,4.88973,2045.1,2045.0,1.469363]
[1742792483742,4.89011,2045.0,2044.7,0.7971]
[1742792483943,9.78029,2045.0,2044.8,0.568801]
[1742792484142,4.89011,2045.0,2044.8,0.568801]
[1742792484378,4.89009,2045.0,2044.8,0.568801]
[1742792484582,4.8897,2045.2,2044.8,0.61769928]
[1742792484752,4.88975,2045.1,2044.8,0.61769928]
[1742792484959,4.88975,2045.1,2044.8,0.6176981]
[1742792485390,4.8897,2045.2,2044.8,5.5080781]
[1742792485690,4.88928,2045.3,2044.9,6.00969681]
[1742792485884,9.77864,2045.3,2044.9,6.00969681]
[1742792486060,4.88928,2045.3,2044.9,6.00969681]
[1742792486686,4.88928,2045.3,2044.9,1.11960681]
[1742792486687,4.88953,2045.2,2044.9,1.11960681]
[1742792486976,4.88928,2045.3,2044.9,6.00977681]
[1742792487181,4.8895,2045.2,2044.8,0.568801]
[1742792487384,4.88938,2045.3,2044.8,5.459111]
[1742792487551,4.88938,2045.3,2044.8,5.459101]
[1742792487755,4.88984,2045.1,2044.8,0.568801]
[1742792488004,0.8339,2045.6,2044.8,0.568801]
[1742792488005,4.88795,2045.9,2045.4,4.88884]
[1742792488153,4.8877,2046.0,2045.5,4.88858]
[1742792488580,9.7755,2046.0,2045.5,4.88858]
[1742792488981,4.8874,2046.1,2045.7,4.88823]
[1742792489184,4.88515,2047.1,2046.4,0.7815]
[1742792489496,4.8863,2046.6,2046.4,0.7815]
[1742792489696,4.88592,2046.7,2046.3,10.04486]
[1742792490193,5.72667,2046.8,2046.3,5.158]
[1742792490392,4.886,2046.7,2046.3,10.04478]
[1742792490598,4.88567,2046.8,2046.4,5.969248]
[1742792490765,0.1220419,2046.9,2046.7,0.7815]
[1742792490970,5.0075619,2046.9,2046.7,0.7815]
[1742792491165,5.0075019,2046.9,2046.7,0.7815]
[1742792491372,0.1220419,2046.9,2046.7,0.7815]
[1742792491695,0.1220419,2046.9,2046.7,6.7227]
[1742792491894,0.1220419,2046.9,2046.7,11.8797]
[1742792492099,0.1220419,2046.9,2046.8,4.88567]
[1742792493397,0.1220419,2046.9,2046.7,6.7227]
[1742792493619,5.0075019,2046.9,2046.7,5.9335]
[1742792493798,0.1220419,2046.9,2046.7,10.81938]
[1742792494003,5.0075119,2046.9,2046.7,5.9335]
[1742792494176,5.0075819,2046.9,2046.6,5.159]
[1742792494375,4.88576,2046.8,2046.6,5.159]
[1742792495222,0.1220419,2046.9,2046.6,13.9387208]
[1742792495624,4.88576,2046.8,2046.6,9.0526708]
[1742792495792,4.88576,2046.8,2046.6,5.159]
[1742792496925,5.0074719,2046.9,2046.6,5.159]
[1742792497286,4.88568,2046.8,2046.6,5.159]
[1742792498233,0.1220419,2046.9,2046.6,5.159]
[1742792498412,0.1220419,2046.9,2046.6,10.04503]
[1742792498601,0.1220419,2046.9,2046.6,13.9386458]
[1742792499109,0.1220419,2046.9,2046.6,9.0526158]
[1742792499410,5.0075719,2046.9,2046.7,5.159]
[1742792499711,0.1220419,2046.9,2046.7,5.159]
[1742792500092,5.0074819,2046.9,2046.7,5.159]
[1742792500314,0.1220419,2046.9,2046.7,5.159]
[1742792500982,0.1220419,2046.9,2046.7,10.09372255]
[1742792501183,0.1220419,2046.9,2046.7,11.66976281]
[1742792501416,0.1220419,2046.9,2046.7,11.62091026]
[1742792501589,0.1220419,2046.9,2046.7,11.62085026]
[1742792502007,0.1220419,2046.9,2046.7,6.73512026]
[1742792502315,0.1220419,2046.9,2046.7,5.159]
[1742792502616,0.1220419,2046.9,2046.5,0.7815]
[1742792502812,4.88572,2046.8,2046.6,5.147]
[1742792504089,0.9236419,2046.9,2046.4,11.109098]
[1742792504090,5.8090819,2046.9,2046.4,11.109098]
[1742792504290,5.8090819,2046.9,2046.5,1.3376517]
[1742792504490,5.8090819,2046.9,2046.5,6.2239517]
[1742792504813,0.9236419,2046.9,2046.5,6.2238617]
[1742792505014,0.9236419,2046.9,2046.5,1.3376517]
[1742792505015,0.1220419,2046.9,2046.5,1.3376517]
[1742792505221,4.88593,2046.7,2046.3,10.82778]
[1742792505387,4.88617,2046.6,2046.3,5.941]
[1742792506414,4.88617,2046.6,2046.1,32.27089674]
[1742792506617,4.88672,2046.4,2045.9,4.8878]
[1742792506829,4.88695,2046.3,2046.0,5.139]
[1742792507127,4.88695,2046.3,2046.0,6.8572398]
[1742792509488,4.88732,2046.2,2046.0,1.7182398]
[1742792509688,9.7746,2046.2,2045.9,5.125]
[1742792509885,4.88728,2046.2,2045.9,5.125]
[1742792510423,4.88735,2046.1,2045.7,1.776683]
[1742792510620,4.88746,2046.1,2045.7,6.664883]
[1742792510919,0.8016,2046.3,2045.7,6.664883]
[1742792510920,5.68859,2046.3,2045.9,4.88782]
[1742792511127,4.88715,2046.2,2045.8,1.1553413]
[1742792511301,4.88715,2046.2,2045.8,6.0433713]
[1742792511502,4.88715,2046.2,2045.8,11.1633713]
[1742792511824,9.77444,2046.2,2045.9,1.68504413]
[1742792512226,5.68848,2046.3,2045.9,6.57282413]
[1742792512395,5.71001,2046.6,2045.9,1.73391572]
[1742792512595,0.8237,2046.6,2045.9,6.57277413]
[1742792512818,4.88677,2046.4,2046.0,6.05676741]
[1742792513016,9.77359,2046.4,2046.0,6.05676741]
[1742792513211,9.77355,2046.4,2046.0,6.05676741]
[1742792513421,4.88677,2046.4,2046.0,10.94415741]
[1742792513625,4.8864,2046.5,2046.2,4.88707]
[1742792513803,4.8864,2046.5,2046.1,4.88729]
[1742792513999,4.8864,2046.5,2046.1,5.98170374]
[1742792514723,4.8864,2046.5,2046.2,4.8871]
[1742792514924,0.8237,2046.8,2046.4,4.88647]
[1742792515124,5.0076419,2046.9,2046.5,4.93522893]
[1742792515299,0.1220419,2046.9,2046.6,4.88612]
[1742792515498,0.1220419,2046.9,2046.6,9.99312]
[1742792515904,0.1220419,2046.9,2046.6,11.481059]
[1742792516339,5.0074819,2046.9,2046.6,11.481059]
[1742792516903,5.0074819,2046.9,2046.6,6.594939]
[1742792517545,9.8931219,2046.9,2046.6,6.594939]
[1742792517746,9.8931219,2046.9,2046.6,5.107]
[1742792517945,4.88604,2046.7,2046.5,5.095]
[1742792518103,4.88615,2046.6,2046.5,5.095]
[1742792518303,4.88615,2046.6,2046.3,5.096]
[1742792518533,4.88615,2046.6,2046.3,9.47576337]
[1742792518747,4.88639,2046.5,2046.3,5.096]
[1742792518912,4.88639,2046.5,2046.2,32.109]
[1742792519244,4.88664,2046.4,2046.1,1.09441374]
[1742792519449,4.887,2046.3,2046.0,1.98607741]
[1742792519735,4.887,2046.3,2046.0,5.09]
[1742792519736,4.8871,2046.2,2046.0,5.09]
[1742792519909,4.88664,2046.4,2045.8,31.90288]
[1742792520229,4.88696,2046.3,2045.9,9.97473]
[1742792520443,0.8237,2046.7,2045.9,9.97473]
[1742792520444,0.8237,2046.7,2045.9,5.45629592]
[1742792520643,4.88593,2046.7,2046.3,4.88664]
[1742792520930,0.1220419,2046.9,2046.6,4.88604]
[1742792521106,4.88569,2046.8,2046.4,4.88657]
[1742792521308,0.1220419,2046.9,2046.4,5.092]
[1742792521309,4.88598,2046.7,2046.4,5.092]
[1742792521514,4.88602,2046.7,2046.4,6.088905]
[1742792521711,4.88568,2046.8,2046.4,6.13776512]
[1742792521907,0.1220419,2046.9,2046.5,4.88627]
[1742792521908,5.0075619,2046.9,2046.5,4.88627]
[1742792522131,5.0075619,2046.9,2046.6,1.0975175]
[1742792522931,0.1220419,2046.9,2046.6,5.9836575]
[1742792523140,0.1220419,2046.9,2046.6,1.0975175]
[1742792523445,5.0076119,2046.9,2046.6,1.0975175]
[1742792523647,0.1220419,2046.9,2046.6,5.9836575]
[1742792524005,0.1220419,2046.9,2046.7,6.05447875]
[1742792524219,0.1220419,2046.9,2046.7,1.16867875]
[1742792524420,9.8932319,2046.9,2046.7,1.16867875]
[1742792524618,0.1220419,2046.9,2046.7,1.16867875]
[1742792525307,5.0075119,2046.9,2046.5,5.70317]
[1742792525736,5.0075119,2046.9,2046.6,5.075]
[1742792526130,0.1220419,2046.9,2046.7,4.8859]
[1742792526508,0.1220419,2046.9,2046.7,4.88581]
[1742792526702,0.1220419,2046.9,2046.8,4.93452075]
[1742792526907,0.1220419,2046.9,2046.8,6.42405383]
[1742792527409,0.1220419,2046.9,2046.8,7.25475383]
[1742792527608,0.1220419,2046.9,2046.8,7.20590308]
[1742792527933,0.1220419,2046.9,2046.8,7.56618463]
[1742792528142,3.54e-06,2047.7,2047.4,3.0]
[1742792528317,3.54e-06,2047.7,2047.6,4.88376]
[1742792528518,0.005,2048.0,2047.9,7.88305]
[1742792528721,0.00351922,2049.6,2048.4,3.8307]
[1742792528917,0.00351922,2049.6,2048.9,0.8307]
[1742792529241,4.88101,2048.8,2048.5,0.195544]
[1742792529409,4.88119,2048.7,2048.4,5.31]
[1742792529605,4.88133,2048.7,2048.4,5.31]
[1742792529837,4.88023,2049.1,2048.2,27.01]
[1742792530036,4.88197,2048.4,2048.2,27.01]
[1742792530236,0.70635909,2049.0,2048.1,6.1607]
[1742792530437,4.88233,2048.2,2048.1,5.33]
[1742792530738,4.88316,2047.9,2047.7,5.343]
[1742792530945,4.88352,2047.7,2047.6,1.467206]
[1742792531145,4.88411,2047.5,2047.2,6.1747]
[1742792531512,0.488316,2047.9,2047.2,6.1747]
[1742792531714,9.76795,2047.6,2047.2,6.1747]
[1742792531909,4.88407,2047.5,2047.2,6.1747]
[1742792532114,4.88469,2047.3,2046.9,0.75661846]
[1742792532310,4.88469,2047.3,2047.0,5.351]
[1742792532641,4.885,2047.1,2046.9,0.75661846]
[1742792533443,4.88519,2047.0,2046.9,0.75661846]
[1742792533641,4.88543,2046.9,2046.8,27.003]
[1742792534645,4.88603,2046.7,2046.5,0.8307]
[1742792534855,0.8409,2047.6,2046.5,4.24519871]
[1742792535022,4.88458,2047.3,2046.8,4.88552]
[1742792535225,4.88419,2047.5,2047.0,4.88518]
[1742792535423,4.88405,2047.5,2046.8,5.352]
[1742792535622,0.7751,2048.1,2047.5,4.88387]
[1742792535822,5.65767,2048.1,2047.6,4.88376]
[1742792536144,4.88295,2048.0,2047.5,10.25083]
[1742792536348,4.88265,2048.1,2047.7,4.8834]
[1742792536549,0.7751,2048.4,2048.0,4.8827]
[1742792536719,0.7751,2048.4,2047.9,5.362]
[1742792536919,9.7655,2048.1,2047.9,5.362]
[1742792537222,5.657,2048.4,2047.5,0.8083]
[1742792537437,9.76681,2047.8,2047.5,6.1653]
[1742792537628,4.8834,2047.8,2047.5,6.1653]
[1742792538655,4.8834,2047.8,2047.5,0.8083]
[1742792538854,4.8834,2047.8,2047.5,6.1603]
[1742792539046,0.7751,2048.4,2047.6,4.8836]
[1742792539247,0.7851,2049.4,2048.4,3.0]
[1742792539610,0.01,2049.4,2049.3,5.42971]
[1742792539721,0.01,2049.4,2049.3,11.700699]
[1742792539926,5.61571922,2050.4,2049.6,4.87895]
[1742792540231,0.00130909,2050.8,2049.8,4.87852]
[1742792540432,4.87746909,2050.8,2050.0,3.0]
[1742792540633,4.87713,2050.4,2049.9,10.588595]
[1742792540959,4.87761909,2050.8,2050.2,3.0]
[1742792541125,0.00130909,2050.8,2050.3,5.581]
[1742792541324,0.00130909,2050.8,2050.4,7.87686]
[1742792541525,0.00130909,2050.8,2050.5,5.666]
[1742792541855,4.87662,2050.6,2050.5,0.195369]
[1742792542056,4.87669,2050.6,2050.0,11.34463]
[1742792542360,4.87638,2050.7,2049.9,1.00097338]
[1742792542759,4.87733,2050.3,2049.7,26.996]
[1742792542954,4.87837,2049.9,2049.7,26.996]
[1742792543255,4.87698,2050.5,2049.8,9.20532248]
[1742792543436,4.87791,2050.1,2049.8,3.77688248]
[1742792543634,4.87828,2049.9,2049.6,2.246487]
[1742792543840,4.87828,2049.9,2049.3,9.210639]
[1742792543841,4.87935,2049.5,2049.3,1.330989]
[1742792544027,4.87971,2049.3,2049.2,5.735]
[1742792544342,4.87986,2049.3,2048.9,5.74]
[1742792544543,4.87799,2050.1,2048.9,14.759504]
[1742792544544,4.87947,2049.4,2048.9,14.759504]
[1742792544732,4.87947,2049.4,2048.9,9.878884]
[1742792544936,4.8802,2049.1,2048.9,9.875884]
[1742792545124,4.87828,2049.9,2048.8,0.7807]
[1742792545330,4.87982,2049.3,2048.9,5.748]
[1742792545556,4.87936,2049.5,2049.0,4.8802]
[1742792545760,9.70872,2049.5,2049.1,0.04879277]
[1742792545958,4.87851,2049.9,2049.3,4.87961]
[1742792546128,4.87851,2049.9,2049.4,10.63146]
[1742792546328,4.87766,2050.2,2049.4,5.752]
[1742792546548,4.87806,2050.0,2049.4,0.7807]
[1742792546829,0.7815,2050.4,2049.5,0.41469739]
[1742792546830,4.87854,2049.8,2049.5,0.41469739]
[1742792547024,4.87854,2049.8,2049.5,5.751]
[1742792547229,4.87877,2049.7,2049.5,5.751]
[1742792547452,4.87826,2050.0,2049.5,10.6301]
[1742792547649,9.75642,2050.0,2049.6,4.87886]
[1742792547848,4.87786,2050.1,2049.6,4.87876]
[1742792548048,4.87786,2050.1,2049.7,5.941646]
[1742792548261,4.87805,2050.0,2049.7,1.062976]
[1742792550166,5.65876,2050.4,2049.5,26.984]
[1742792550461,4.879,2049.6,2049.5,26.984]
[1742792550761,4.87786,2050.1,2049.6,4.87889]
[1742792550927,4.87813,2050.0,2049.6,4.87889]
[1742792551132,4.87813,2050.0,2049.7,3.674191]
[1742792551361,4.87852,2049.8,2049.5,26.984]
[1742792551568,4.879,2049.6,2049.5,26.984]
[1742792552063,4.87986,2049.3,2049.1,1.55578328]
[1742792552951,5.65881,2050.4,2049.3,0.55]
[1742792553157,4.87828,2050.0,2049.5,4.87919]
[1742792553450,4.87827,2050.0,2049.6,4.87888]
[1742792553761,4.87821,2050.0,2049.5,4.879]
[1742792553962,4.87837,2049.9,2049.5,9.75811]
[1742792554466,4.87837,2049.9,2049.5,4.879]
[1742792554661,4.87837,2049.9,2049.6,1.1268]
[1742792555273,4.87837,2049.9,2049.5,10.60121]
[1742792555569,4.87806,2050.0,2049.5,10.60107]
[1742792555867,4.87831,2049.9,2049.5,10.60107]
[1742792556760,4.87809,2050.0,2049.6,4.87897]
[1742792556958,9.75634,2050.0,2049.6,4.87897]
[1742792557176,4.87852,2049.8,2049.6,5.712]
[1742792557480,4.8774,2050.3,2049.8,4.87848]
[1742792557651,4.87789,2050.1,2049.6,10.59098]
[1742792557853,4.87846,2049.9,2049.6,5.712]
[1742792558068,4.87846,2049.9,2049.6,7.324564]
[1742792558261,4.87846,2049.9,2049.6,7.330564]
[1742792558462,4.87811,2050.0,2049.6,12.209554]
[1742792558868,9.75636,2050.0,2049.6,12.209554]
[1742792559073,4.87854,2049.8,2049.6,7.330564]
[1742792559262,4.87834,2049.9,2049.5,10.59222]
[1742792559457,4.87805,2050.0,2049.5,10.59207]
[1742792559675,4.87805,2050.0,2049.6,4.87899]
[1742792560274,4.87847,2049.9,2049.5,10.59207]
[1742792560889,9.75696,2049.9,2049.5,10.59207]
[1742792561082,9.75696,2049.9,2049.5,14.956923]
[1742792561485,4.87847,2049.9,2049.6,4.87899]
[1742792561983,4.87847,2049.9,2049.5,14.957023]
[1742792562184,4.87847,2049.9,2049.5,14.956933]
[1742792562379,4.87847,2049.9,2049.5,19.836063]
[1742792562549,4.87847,2049.9,2049.6,2.0491063]
[1742792563281,4.87876,2049.7,2049.4,0.655]
[1742792563481,0.7815,2050.4,2049.5,5.674]
[1742792563655,4.87813,2050.0,2049.6,4.87883]
[1742792563855,4.87813,2050.0,2049.6,5.999613]
[1742792564291,4.87833,2049.9,2049.6,1.120783]
[1742792565278,4.87864,2049.8,2049.6,1.120783]
[1742792565661,9.75736,2049.8,2049.6,1.120783]
[1742792565863,4.87864,2049.8,2049.6,1.120783]
[1742792566390,9.7568,2049.9,2049.6,1.120783]
[1742792566585,4.87855,2049.8,2049.6,1.120783]
[1742792566769,9.75774,2049.7,2049.5,6.02544669]
[1742792566969,4.879,2049.6,2049.5,0.35144669]
[1742792567169,9.75772,2049.7,2049.5,0.35144669]
[1742792567369,4.87876,2049.7,2049.5,0.35144669]
[1742792567566,4.879,2049.6,2049.5,0.35144669]
[1742792568172,4.88005,2049.2,2048.8,9.347054]
[1742792568378,4.88026,2049.1,2048.9,9.7851342]
[1742792568878,4.87818,2050.0,2049.5,0.7971]
[1742792569077,4.87843,2049.9,2049.5,10.55542]
[1742792569271,4.87843,2049.9,2049.6,6.711542]
[1742792569472,4.87807,2050.0,2049.6,6.711542]
[1742792569674,4.87807,2050.0,2049.6,11.590452]
[1742792569873,9.75632,2050.0,2049.6,11.590452]
[1742792570079,4.87807,2050.0,2049.6,11.590452]
[1742792570397,4.87786,2050.1,2049.7,1.7266642]
[1742792570778,4.87816,2050.0,2049.7,1.7266642]
[1742792570981,4.87828,2049.9,2049.7,1.7266642]
[1742792571180,4.87828,2049.9,2049.8,0.3532486]
[1742792571377,4.87809,2050.0,2049.8,0.3532486]
[1742792571901,9.75636,2050.0,2049.8,0.3532486]
[1742792572103,9.75574,2050.1,2049.8,0.3532486]
[1742792572304,4.87828,2050.0,2049.8,0.3532486]
[1742792572506,4.87828,2050.0,2049.9,0.3532486]
[1742792580189,4.87828,2050.0,2049.9,1.34989711]
[1742792580519,4.87734,2050.3,2049.9,1.34989711]
[1742792580724,4.87726,2050.4,2050.0,4.87782]
[1742792581021,9.09e-06,2050.8,2050.7,6.20438]
[1742792581226,4.87282,2052.2,2051.0,3.0]
[1742792581411,5.675,2052.2,2051.4,5.65271]
[1742792581610,0.8021,2052.2,2051.4,5.65271]
[1742792581922,0.01,2052.4,2051.7,5.652]
[1742792582424,0.01,2052.4,2051.9,3.0]
[1742792582726,0.01,2052.4,2052.3,5.65058]
[1742792582927,0.01,2052.4,2051.6,0.778]
[1742792582928,4.87348,2052.0,2051.6,0.778]
[1742792583106,4.87448,2051.5,2051.4,0.3532486]
[1742792583815,4.87554,2051.1,2050.8,6.467]
[1742792584016,4.87638,2050.7,2050.4,5.718]
[1742792584221,4.87706,2050.5,2050.3,0.778]
[1742792584415,4.8775,2050.3,2049.9,0.778]
[1742792584793,4.87793,2050.1,2049.9,0.778]
[1742792584994,4.87763,2050.2,2050.0,0.97087473]
[1742792585299,4.87804,2050.0,2049.9,6.67971944]
[1742792585605,4.87804,2050.0,2049.9,7.34769138]
[1742792585809,4.87784,2050.1,2049.9,1.63269138]
[1742792586209,4.87754,2050.3,2049.9,6.51095138]
[1742792586527,4.87691,2050.5,2049.9,6.51097138]
[1742792586830,4.87722,2050.4,2050.0,11.23513714]
[1742792586999,4.87662,2050.6,2050.0,6.35709714]
[1742792587194,4.87762,2050.2,2050.0,6.35709714]
[1742792587623,4.87709,2050.5,2050.0,11.23494714]
[1742792587823,4.87701,2050.5,2050.1,1.28676385]
[1742792588025,4.87744,2050.3,2050.1,1.28676385]
[1742792588229,4.87792,2050.1,2049.9,1.63269138]
[1742792588625,4.87765,2050.2,2049.9,1.63269138]
[1742792588825,4.87765,2050.2,2049.9,1.68146733]
[1742792589028,4.87785,2050.1,2049.9,1.63269138]
[1742792590103,4.87758,2050.2,2049.9,1.63269138]
[1742792590104,9.7553,2050.2,2049.9,1.63269138]
[1742792590510,4.87726,2050.4,2050.0,0.73086914]
[1742792590727,4.87746,2050.3,2050.0,0.73086914]
[1742792591522,0.7964,2050.7,2050.3,4.87729]
[1742792591711,6.4624,2051.6,2050.4,5.71476551]
[1742792591909,4.87554,2051.1,2050.6,4.87649]
[1742792592119,9.75119,2051.1,2050.7,4.92503504]
[1742792592434,0.1220419,2053.1,2050.8,0.8157]
[1742792592647,0.1220419,2053.1,2052.5,0.8157]
[1742792592939,0.00381446,2053.5,2052.5,3.8157]
[1742792593113,4.87171,2052.7,2052.2,3.762035]
[1742792593429,0.487171,2052.7,2052.2,0.762035]
[1742792593628,0.7964,2052.8,2052.2,0.762035]
[1742792593832,4.87258,2052.3,2052.2,0.762035]
[1742792594210,4.87258,2052.3,2052.2,5e-06]
[1742792594630,4.87258,2052.3,2051.3,5.69056]
[1742792594631,0.004995,2052.0,2051.3,0.8157]
[1742792594864,0.004995,2052.0,2051.3,4.81027282]
[1742792595167,4.87353,2051.9,2050.9,0.8157]
[1742792595373,4.87504,2051.3,2050.8,11.7596135]
[1742792595537,4.87432,2051.6,2050.9,0.97434919]
[1742792595862,4.87478,2051.4,2050.9,2.73534346]
[1742792596175,4.87397,2051.8,2050.9,2.73534346]
[1742792596332,0.7964,2051.7,2050.6,0.8157]
[1742792596522,4.87648,2050.7,2050.4,6.388]
[1742792596724,4.87615,2050.8,2050.4,0.98335521]
[1742792596949,4.87414,2051.7,2050.5,4.87685]
[1742792597152,0.7964,2052.2,2050.8,3.0]
[1742792597153,0.004995,2052.0,2050.8,3.0]
[1742792597419,4.87373,2051.9,2051.4,4.8746]
[1742792597622,4.87376,2051.8,2051.4,11.3046]
[1742792597922,4.87483,2051.4,2051.0,11.30466]
[1742792598160,4.87502,2051.3,2051.0,6.429]
[1742792598343,4.8754,2051.2,2051.0,6.429]
[1742792598673,4.87489,2051.4,2051.0,10.336767]
[1742792598853,4.87523,2051.2,2051.0,6.429]
[1742792599166,4.87543,2051.1,2051.0,6.429]
[1742792599472,4.87509,2051.3,2050.8,39.24779701]
[1742792599633,4.87509,2051.3,2050.9,4.46115415]
[1742792599844,4.87412,2051.7,2051.0,6.411]
[1742792600049,4.87463,2051.5,2051.0,6.411]
[1742792600371,4.87463,2051.5,2051.1,4.87542]
[1742792600582,4.87463,2051.5,2051.0,11.335329]
[1742792600583,4.874,2051.7,2051.2,1.6210749]
[1742792600878,4.878485,2052.0,2051.1,4.8754]
[1742792601077,4.87484,2051.4,2051.0,11.28666]
[1742792601278,9.74976,2051.4,2050.9,9.2882507]
[1742792601426,4.87535,2051.2,2050.9,10.8184007]
[1742792601633,4.87535,2051.2,2050.9,4.4124007]
[1742792601934,4.8756,2051.1,2050.9,4.4124007]
[1742792602637,4.87402,2051.7,2050.9,4.4124007]
[1742792602638,4.8752,2051.2,2050.9,4.4124007]
[1742792602944,4.87524,2051.2,2051.0,3.23651577]
[1742792603144,4.8746,2051.5,2051.0,3.23651577]
[1742792603346,0.8007,2051.4,2050.6,0.58602052]
[1742792603557,4.8759,2050.9,2050.6,1.54593926]
[1742792603757,4.87495,2051.3,2050.6,1.54593926]
[1742792603976,4.87649,2050.7,2050.4,6.391]
[1742792604179,0.8007,2051.4,2050.5,0.04876491]
[1742792604331,4.87486,2051.4,2050.6,0.8]
[1742792604540,4.87448,2051.5,2050.7,0.04875617]
[1742792604751,4.87608,2050.9,2050.6,0.8]
[1742792605156,4.87572,2051.0,2050.7,0.567674]
[1742792605532,4.87559,2051.1,2050.7,5.444014]
[1742792605728,4.8752,2051.2,2050.7,5.49259133]
[1742792605973,4.87544,2051.1,2050.7,5.49259133]
[1742792606155,4.87544,2051.1,2050.8,1.11692013]
[1742792606353,4.87568,2051.0,2050.8,1.11692013]
[1742792607866,4.87513,2051.3,2050.8,1.11692013]
[1742792608070,4.874,2051.7,2051.2,4.87518]
[1742792608361,4.874,2051.7,2051.3,4.9235782]
[1742792608562,4.87424,2051.6,2051.2,4.92375431]
[1742792608765,4.87424,2051.6,2051.2,9.79882431]
[1742792609262,4.87424,2051.6,2051.2,4.92375431]
[1742792609463,5.67468,2051.8,2051.3,5.36727543]
[1742792609658,4.87391,2051.8,2051.3,6.16729543]
[1742792609853,4.87404,2051.7,2051.3,6.16729543]
[1742792610257,4.87424,2051.6,2051.3,1.47428631]
[1742792610554,9.7487,2051.6,2051.3,1.47428631]
[1742792610755,11.97846,2051.8,2050.9,0.96599011]
[1742792610961,4.87567,2051.0,2050.6,6.304]
[1742792611270,0.8007,2051.6,2050.6,1.118071]
[1742792611446,4.87628,2050.8,2050.4,11.17602]
[1742792612072,0.004995,2052.0,2051.0,3.0]
[1742792612269,0.8007,2053.2,2052.1,3.0]
[1742792612567,4.87143,2052.8,2052.0,0.8]
[1742792612749,4.87238,2052.4,2052.0,4.8732]
[1742792612946,4.87238,2052.4,2051.9,4.87344]
[1742792613151,4.87263,2052.3,2051.9,4.87344]
[1742792613488,9.74543,2052.3,2051.8,4.87376]
[1742792613664,4.87291,2052.2,2051.6,0.8]
[1742792613871,4.87321,2052.1,2051.7,4.87391]
[1742792614071,4.87333,2052.0,2051.7,0.99957053]
[1742792614455,0.8007,2052.1,2051.3,6.624]
[1742792614643,9.74829,2051.7,2051.3,6.624]
[1742792614851,4.8741,2051.7,2051.3,6.624]
[1742792615073,4.87465,2051.5,2051.2,0.96277353]
[1742792615282,4.87495,2051.3,2051.2,0.96277353]
[1742792615570,6.622,2051.8,2050.9,1.77370526]
[1742792615768,4.87457,2051.5,2051.0,4.87548]
[1742792616279,4.87457,2051.5,2051.1,4.87529]
[1742792616943,4.8751,2051.3,2050.9,0.97370526]
[1742792617348,4.87524,2051.2,2050.7,11.47634]
[1742792617577,4.87524,2051.2,2050.8,0.95974778]
[1742792617578,4.87543,2051.1,2050.8,0.95974778]
[1742792617984,4.87583,2051.0,2050.7,6.6]
[1742792618147,4.87606,2050.9,2050.5,4.87674]
[1742792618349,4.87583,2051.0,2050.6,5.85496029]
[1742792618350,9.75162,2051.0,2050.6,5.85496029]
[1742792618874,4.87553,2051.1,2050.6,0.97839029]
[1742792619047,4.87574,2051.0,2050.6,1.56391432]
[1742792619378,9.75164,2051.0,2050.6,1.56391432]
[1742792619673,4.87592,2050.9,2050.6,1.56391432]
[1742792619891,9.75201,2050.9,2050.6,0.97839029]
[1742792620096,4.87615,2050.8,2050.4,4.87698]
[1742792620301,4.87592,2050.9,2050.4,4.87698]
[1742792620502,4.87521,2051.2,2050.5,0.96921544]
[1742792620655,4.8766,2050.7,2050.3,26.952]
[1742792620850,4.87679,2050.6,2050.3,26.952]
[1742792621254,4.87688,2050.5,2050.3,27.93829307]
[1742792621589,4.87679,2050.6,2050.3,27.93829307]
[1742792621999,4.87672,2050.6,2050.3,0.98629307]
[1742792622183,4.87662,2050.6,2050.3,0.98629307]
[1742792622888,9.7529,2050.7,2050.3,5.86360307]
[1742792623101,0.8314,2050.9,2050.4,4.87694]
[1742792623256,4.87646,2050.7,2050.3,2.06039038]
[1742792623601,9.75268,2050.8,2050.3,6.93762038]
[1742792623904,9.75262,2050.8,2050.4,0.69376204]
[1742792624062,4.87629,2050.8,2050.4,0.69376204]
[1742792624395,4.87642,2050.7,2050.4,0.69376204]
[1742792625099,4.87629,2050.8,2050.4,0.69376204]
[1742792625466,4.87643,2050.7,2050.4,0.69376204]
[1742792626807,4.87688,2050.5,2050.3,2.06039038]
[1742792627006,4.87709,2050.4,2050.3,0.98629307]
[1742792627172,4.87691,2050.5,2050.3,0.98629307]
[1742792628308,4.87662,2050.6,2050.3,0.98629307]
[1742792628526,4.87662,2050.6,2050.1,4.87757]
[1742792629218,4.87693,2050.5,2050.1,4.87757]
[1742792629837,9.75399,2050.5,2050.0,9.75599]
[1742792630133,4.87693,2050.5,2050.1,7.55677651]
[1742792630433,9.754,2050.5,2050.1,7.55677651]
[1742792630820,4.87722,2050.4,2050.1,2.67906651]
[1742792631000,4.87662,2050.6,2050.1,0.97981751]
[1742792631203,4.87662,2050.6,2049.4,3.0]
[1742792631204,9.75547,2050.2,2049.7,9.75721]
[1742792631719,4.87784,2050.1,2049.7,4.87856]
[1742792631897,4.87769,2050.2,2049.9,0.95979133]
[1742792632291,9.75546,2050.2,2049.9,0.95979133]
[1742792633521,4.87784,2050.1,2049.9,0.95979133]
[1742792634324,0.8314,2050.3,2049.9,0.95979133]
[1742792634525,0.8314,2050.3,2049.4,6.329]
[1742792634526,4.87757,2050.2,2049.4,6.329]
[1742792634723,4.87904,2049.6,2049.3,0.8396]